bitfinex-derivatives/quotes_ETHF0:USTF0_20250327
["timestamp","ask_amount","ask_price","bid_price","bid_amount"]
[1743087844655,2.12939,2027.2,2027.0,4.19462]
[1743087844854,1.3276,2027.1,2027.0,4.19462]
[1743087845150,1.1426,2027.2,2027.1,0.9868]
[1743087845347,3.45696,2027.2,2027.1,0.9868]
[1743087845550,2.4702,2027.2,2027.0,4.19461]
[1743087845752,1.3276,2027.1,2027.0,4.19461]
[1743087845949,1.3276,2027.1,2027.0,4.68749136]
[1743087846646,1.3276,2027.1,2027.0,5.35370725]
[1743087847046,0.98673,2027.3,2027.1,0.9868]
[1743087847241,1.2085,2027.4,2027.1,0.9868]
[1743087847242,1.3949,2027.2,2027.1,0.9868]
[1743087847453,2.38166,2027.2,2027.1,0.49350775]
[1743087847653,1.3949,2027.2,2027.1,0.49350775]
[1743087848047,1.3949,2027.2,2027.1,1.15944272]
[1743087848246,1.3949,2027.2,2027.1,1.15950307]
[1743087848442,2.38166,2027.2,2027.1,0.66598303]
[1743087848649,1.3949,2027.2,2026.8,0.00740229]
[1743087848859,0.9869,2026.9,2026.8,0.00740229]
[1743087849155,0.9869,2026.9,2026.8,0.50103776]
[1743087849453,0.9869,2026.9,2026.8,0.67413136]
[1743087849950,2.1552,2026.9,2026.8,0.67413136]
[1743087850257,2.1552,2026.9,2026.8,1.16807092]
[1743087850457,2.1552,2026.9,2026.8,0.50134185]
[1743087850751,2.1552,2026.9,2026.8,0.00740229]
[1743087851155,1.1683,2026.9,2026.8,0.99435229]
[1743087851555,2.5432,2026.9,2026.8,1.4883441]
[1743087852251,2.5432,2026.9,2026.8,0.5013941]
[1743087852448,2.5432,2026.9,2026.8,1.16849658]
[1743087852646,2.5432,2026.9,2026.8,1.16857666]
[1743087853047,2.5432,2026.9,2026.8,2.15552666]
[1743087853449,1.3749,2026.9,2026.8,2.15552666]
[1743087854251,2.3618,2026.9,2026.8,1.16857666]
[1743087854452,2.3618,2026.9,2026.8,1.16888911]
[1743087854847,1.3749,2026.9,2026.8,2.15583911]
[1743087855248,2.12582,2027.1,2026.9,0.9869]
[1743087855453,1.3703,2027.0,2026.9,0.9869]
[1743087855654,1.3703,2027.0,2026.9,1.48165018]
[1743087855855,1.3703,2027.0,2026.9,2.14875266]
[1743087857058,1.139,2027.1,2027.0,0.98685]
[1743087857356,2.4747,2027.1,2027.0,1.48160018]
[1743087857658,3.4615,2027.1,2027.0,0.49475018]
[1743087857855,3.4615,2027.1,2027.0,1.16185266]
[1743087858452,3.4615,2027.1,2027.0,1.16216543]
[1743087858651,3.4615,2027.1,2027.0,0.66710248]
[1743087859257,0.9869,2026.9,2026.8,0.00740229]
[1743087859555,2.34557,2027.0,2026.8,1.48958996]
[1743087859757,1.3587,2026.9,2026.8,1.66319935]
[1743087859957,1.3587,2026.9,2026.8,2.85571245]
[1743087860755,1.3587,2026.9,2026.8,3.92584128]
[1743087861367,1.2116,2027.2,2026.8,4.5764617]
[1743087861556,2.18546,2027.0,2026.9,1.84313352]
[1743087862062,2.18546,2027.0,2026.9,2.83003352]
[1743087862360,2.18546,2027.0,2026.9,3.49891058]
[1743087862762,1.1986,2027.0,2026.9,3.49891058]
[1743087863166,2.18545,2027.0,2026.9,3.49891058]
[1743087863462,2.5522,2027.0,2026.9,3.49891058]
[1743087863866,3.53905,2027.0,2026.9,2.51201058]
[1743087864065,3.53905,2027.0,2026.9,3.49891058]
[1743087864265,3.53905,2027.0,2026.9,3.49903232]
[1743087864463,3.53905,2027.0,2026.9,2.51213232]
[1743087865571,3.53905,2027.0,2026.9,1.16423232]
[1743087866066,3.53905,2027.0,2026.9,0.66887706]
[1743087866564,0.9869,2026.9,2026.8,0.00740229]
[1743087866861,2.3683,2026.9,2026.8,0.50311683]
[1743087867861,2.3683,2026.9,2026.8,0.00740229]
[1743087868262,0.98695,2026.8,2026.7,3.2078]
[1743087868467,2.46767,2026.6,2026.2,1.2959]
[1743087868765,0.98719,2026.3,2026.2,1.2959]
[1743087869358,2.565,2026.4,2026.2,2.28314]
[1743087869664,2.36829,2026.3,2026.2,1.96536098]
[1743087870559,0.00740229,2026.5,2026.2,1.2959]
[1743087870762,0.00740229,2026.5,2026.4,0.98714]
[1743087870763,1.38850229,2026.5,2026.4,0.98714]
[1743087871465,1.38850229,2026.5,2026.4,2.37794]
[1743087871864,0.00740229,2026.5,2026.4,6.25439121]
[1743087874071,0.00740229,2026.5,2026.4,9.84139121]
[1743087874460,0.00740229,2026.5,2026.4,10.53827361]
[1743087874755,1.3389,2026.8,2026.7,0.987]
[1743087875364,1.3389,2026.8,2026.7,4.1948]
[1743087875558,2.3263,2027.0,2026.9,0.9869]
[1743087875764,1.19660229,2027.0,2026.9,0.9869]
[1743087876375,2.57530229,2027.0,2026.9,3.05755502]
[1743087876563,3.56215229,2027.0,2026.9,0.66825502]
[1743087876867,3.56215229,2027.0,2026.8,2.38933]
[1743087877068,1.3787,2026.9,2026.8,2.38933]
[1743087878359,2.3656,2026.9,2026.8,1.4024]
[1743087878561,2.3656,2026.9,2026.8,0.66846233]
[1743087878760,2.3656,2026.9,2026.8,1.99696233]
[1743087878968,1.3787,2026.9,2026.8,2.98391233]
[1743087879263,2.3656,2026.9,2026.8,2.98391233]
[1743087879568,1.3787,2026.9,2026.8,2.98391233]
[1743087880469,1.3787,2026.9,2026.8,3.47341319]
[1743087880765,2.3656,2026.9,2026.8,2.48646319]
[1743087880968,3.5565,2026.9,2026.8,2.31545]
[1743087881162,3.5565,2026.9,2026.8,1.3285]
[1743087881367,8.2774,2026.9,2026.0,3.21520229]
[1743087881669,8.2774,2026.9,2026.1,0.48979671]
[1743087881670,0.98724,2026.2,2026.1,0.48979671]
[1743087881865,0.98729,2026.1,2026.0,0.00740229]
[1743087882068,4.67909,2026.1,2026.0,0.00740229]
[1743087883569,3.6918,2026.1,2026.0,0.00740229]
[1743087883874,3.6918,2026.1,2026.0,0.99474229]
[1743087884172,40.8,2026.3,2026.0,3.21520229]
[1743087884365,1.2943,2026.2,2026.1,2.38906]
[1743087885571,1.1219,2026.3,2026.2,0.98724]
[1743087885771,2.4162,2026.3,2026.2,2.38904]
[1743087885973,1.2943,2026.3,2026.2,2.38904]
[1743087886767,4.1949,2026.5,2026.3,0.98718]
[1743087886966,1.3228,2026.4,2026.3,2.42048]
[1743087887374,2.30994,2026.4,2026.3,1.4333]
[1743087887567,1.3228,2026.4,2026.3,2.42049]
[1743087888569,2.30996,2026.4,2026.2,0.98722]
[1743087888771,0.9872,2026.3,2026.1,2.42056]
[1743087888972,2.31,2026.3,2026.2,1.4333]
[1743087889169,1.1462,2026.2,2026.1,2.42056]
[1743087889373,4.19492,2026.5,2026.3,0.98717]
[1743087889572,4.19492,2026.5,2026.0,5.68347229]
[1743087889573,2.32965,2026.4,2026.2,0.9872]
[1743087889766,1.3425,2026.3,2026.2,0.9872]
[1743087889965,1.3425,2026.3,2026.0,3.21520229]
[1743087890165,2.32973,2026.3,2026.1,0.98729]
[1743087890376,1.1547,2026.2,2026.1,0.98729]
[1743087890676,2.4972,2026.2,2026.1,0.98729]
[1743087890877,5.39191,2026.5,2026.3,0.98716]
[1743087891365,4.4048,2026.5,2026.4,0.98714]
[1743087891565,5.39191,2026.5,2026.3,0.98716]
[1743087891774,4.4048,2026.5,2026.4,0.98714]
[1743087891981,5.39193,2026.5,2026.3,0.98718]
[1743087892171,1.3425,2026.4,2026.3,0.98718]
[1743087893066,1.3425,2026.4,2026.3,4.19498]
[1743087894178,1.3425,2026.4,2026.3,0.98718]
[1743087894776,1.3425,2026.4,2026.3,1.47673378]
[1743087894976,1.3425,2026.4,2026.3,4.68453378]
[1743087895569,1.3425,2026.4,2026.3,4.68460687]
[1743087896082,1.3425,2026.4,2026.3,5.35369135]
[1743087898674,2.32964,2026.4,2026.3,5.35370135]
[1743087898881,2.32964,2026.4,2026.3,3.87688448]
[1743087899079,1.3425,2026.4,2026.3,4.86407448]
[1743087899284,2.32964,2026.4,2026.3,1.65627448]
[1743087899685,2.32964,2026.4,2026.3,0.98719]
[1743087900382,1.3425,2026.4,2026.3,0.98719]
[1743087901087,2.32964,2026.4,2026.3,0.98719]
[1743087901288,1.3425,2026.4,2026.3,0.98719]
[1743087901486,1.3425,2026.4,2026.2,1.3699]
[1743087901686,0.98729,2026.1,2026.0,9.20320229]
[1743087902293,0.98729,2026.1,2026.0,5.99540229]
[1743087902492,0.98707,2026.6,2026.4,0.98711]
[1743087902679,1.3897,2026.4,2026.3,4.19499]
[1743087902879,1.3897,2026.4,2026.3,6.11143154]
[1743087903286,1.3897,2026.4,2026.3,7.24253154]
[1743087904090,3.585,2026.9,2026.4,2.46787]
[1743087904279,1.3897,2026.7,2026.6,0.98705]
[1743087904487,1.3897,2026.7,2026.6,2.41395]
[1743087904682,2.3767,2026.7,2026.6,2.41395]
[1743087904884,1.3897,2026.7,2026.6,2.41395]
[1743087905785,2.3767,2026.7,2026.6,1.4269]
[1743087906692,2.3767,2026.7,2026.6,2.41395]
[1743087906897,2.3767,2026.7,2026.6,1.4269]
[1743087907296,1.3897,2026.7,2026.6,2.41395]
[1743087907497,0.98705,2026.6,2026.3,5.32604]
[1743087907701,1.3781,2026.5,2026.4,2.30094]
[1743087907999,2.6732,2026.5,2026.4,2.30094]
[1743087908502,4.57097,2026.8,2026.6,0.98701]
[1743087908714,3.66015,2026.8,2026.7,1.3138]
[1743087908901,2.28205,2026.8,2026.7,1.3138]
[1743087909095,1.2951,2026.8,2026.7,1.3138]
[1743087909403,2.28205,2026.8,2026.7,1.3138]
[1743087909602,1.2951,2026.8,2026.7,2.3008]
[1743087909802,1.2951,2026.8,2026.7,1.3138]
[1743087910108,1.1519,2026.9,2026.8,0.98695]
[1743087910502,1.1519,2026.9,2026.8,2.30075]
[1743087911303,2.1388,2026.9,2026.8,1.3138]
[1743087911509,2.1388,2026.9,2026.7,0.98695]
[1743087911705,2.1388,2026.9,2026.7,2.34655]
[1743087912312,1.1519,2026.9,2026.8,0.98695]
[1743087912506,1.1519,2026.9,2026.8,2.34655]
[1743087912817,1.1519,2026.9,2026.8,1.3596]
[1743087913302,2.1388,2026.9,2026.8,1.3596]
[1743087913701,2.13884,2026.9,2026.7,0.987]
[1743087913904,2.13884,2026.9,2026.7,0.98699]
[1743087914105,2.13884,2026.9,2026.7,2.35239]
[1743087914711,1.1519,2026.9,2026.8,0.98695]
[1743087914910,1.1519,2026.9,2026.8,2.35235]
[1743087916004,1.1519,2026.9,2026.8,1.3654]
[1743087916404,1.1519,2026.9,2026.8,2.35235]
[1743087916902,1.1519,2026.9,2026.8,2.84147609]
[1743087917102,1.1519,2026.9,2026.8,2.35235]
[1743087917908,1.1519,2026.9,2026.6,3.2078]
[1743087918105,2.13883,2026.9,2026.7,2.77150136]
[1743087918304,0.98695,2026.8,2026.7,1.2956]
[1743087918506,0.98698,2026.8,2026.6,4.19484]
[1743087918707,0.987,2026.7,2026.6,4.5034]
[1743087919005,0.987,2026.7,2026.6,3.2078]
[1743087919809,4.56999,2026.8,2026.6,4.19484]
[1743087920009,3.583,2026.8,2026.6,4.5594]
[1743087920404,4.56998,2026.8,2026.6,5.54644]
[1743087920611,0.987,2026.7,2026.6,4.5594]
[1743087920814,4.56999,2026.8,2026.6,4.5594]
[1743087921008,3.583,2026.8,2026.6,4.5594]
[1743087921212,0.987,2026.7,2026.6,4.5594]
[1743087921417,2.3598,2026.7,2026.6,4.5594]
[1743087921712,1.3728,2026.7,2026.6,4.5594]
[1743087922116,2.3598,2026.7,2026.6,4.5594]
[1743087922508,1.3728,2026.7,2026.3,3.2078]
[1743087922713,0.98714,2026.4,2026.3,4.5594]
[1743087922913,0.98712,2026.5,2026.3,4.19498]
[1743087923212,2.6143,2026.5,2026.4,0.98714]
[1743087923408,1.4029,2026.5,2026.4,2.85115388]
[1743087924015,1.4029,2026.5,2026.4,3.51965506]
[1743087924606,1.2114,2026.7,2026.5,0.98707]
[1743087924803,3.49442,2026.7,2026.6,1.3748]
[1743087925912,4.86252,2026.7,2026.6,1.3748]
[1743087927716,1.3681,2026.7,2026.6,1.3748]
[1743087927914,1.1976,2026.9,2026.8,0.98695]
[1743087928118,1.1976,2026.9,2026.6,7.05022]
[1743087928119,3.55262,2026.9,2026.7,2.33358]
[1743087928320,2.5657,2026.9,2026.8,1.3466]
[1743087928616,0.00740229,2027.0,2026.8,2.33355]
[1743087928818,2.36235229,2027.0,2026.9,2.6498]
[1743087929616,1.37550229,2027.0,2026.9,3.6367]
[1743087930413,0.00740229,2027.0,2026.9,3.6367]
[1743087931219,2.28855229,2027.0,2026.9,2.6498]
[1743087931518,1.30170229,2027.0,2026.9,3.6367]
[1743087931718,0.00740229,2027.0,2026.9,3.6367]
[1743087931912,0.00740229,2027.0,2026.9,4.12538535]
[1743087932112,0.00740229,2027.0,2026.9,4.12563114]
[1743087932312,0.00740229,2027.0,2026.9,4.12562028]
[1743087932508,1.33560229,2027.0,2026.9,4.12562028]
[1743087932717,1.33560229,2027.0,2026.9,4.79377466]
[1743087933926,2.32245229,2027.0,2026.9,3.00165438]
[1743087934223,2.32245229,2027.0,2026.9,2.01475438]
[1743087934424,2.32245229,2027.0,2026.9,1.3466]
[1743087934825,2.32245229,2027.0,2026.9,2.3335]
[1743087935127,2.32245229,2027.0,2026.9,1.3466]
[1743087936127,2.32245229,2027.0,2026.9,0.9869]
[1743087936327,2.32245229,2027.0,2026.8,0.98692]
[1743087936630,1.2923,2026.9,2026.8,0.98692]
[1743087937017,2.27923,2026.9,2026.7,2.32378]
[1743087937212,0.987,2026.7,2026.2,3.2078]
[1743087937418,0.98724,2026.2,2026.1,1.3368]
[1743087937616,0.98729,2026.1,2026.0,0.00740229]
[1743087937927,3.55309,2026.1,2026.0,0.00740229]
[1743087938624,6.76089,2026.1,2026.0,0.00740229]
[1743087938821,0.98744,2025.8,2025.6,4.1953]
[1743087939016,0.98744,2025.8,2025.6,5.6061]
[1743087939217,0.98744,2025.8,2025.7,1.4108]
[1743087939425,0.98749,2025.7,2025.6,3.2078]
[1743087940015,0.98753,2025.6,2025.5,1.4108]
[1743087940619,0.98753,2025.6,2025.5,2.39838]
[1743087940819,0.98753,2025.6,2025.5,1.4108]
[1743087941127,0.98752,2025.7,2025.5,2.39837]
[1743087941528,0.98753,2025.6,2025.5,1.4108]
[1743087942830,0.98753,2025.6,2025.5,2.39838]
[1743087943029,3.581,2025.8,2025.5,1.4108]
[1743087943225,0.98751,2025.7,2025.5,2.39836]
[1743087943426,0.98753,2025.6,2025.5,2.39836]
[1743087943623,0.98753,2025.6,2025.5,1.4108]
[1743087943929,3.581,2025.8,2025.4,0.00740229]
[1743087943930,0.98758,2025.5,2025.4,0.00740229]
[1743087945326,3.581,2025.5,2025.4,0.00740229]
[1743087945624,3.581,2025.5,2025.4,0.99503229]
[1743087945820,4.56858,2025.5,2025.4,0.00740229]
[1743087947028,9.2888,2025.5,2025.0,3.2078]
[1743087947230,0.98788,2024.9,2024.8,1.3865]
[1743087947434,6.05059,2025.0,2024.4,1.3106]
[1743087947621,5.67777,2024.7,2024.0,11.26108]
[1743087947822,0.98819,2024.3,2024.1,1.3865]
[1743087948025,0.98817,2024.3,2024.1,1.3865]
[1743087948220,0.98822,2024.2,2024.1,1.3865]
[1743087948424,3.581,2024.3,2024.0,0.00740229]
[1743087948634,4.56918,2024.3,2024.0,0.99569229]
[1743087948834,3.581,2024.3,2024.1,1.3865]
[1743087949034,4.56918,2024.3,2024.1,1.3865]
[1743087949227,0.98827,2024.1,2024.0,0.00740229]
[1743087949426,4.19607,2024.1,2024.0,0.00740229]
[1743087949625,3.2078,2024.1,2024.0,0.00740229]
[1743087949822,4.19607,2024.1,2024.0,0.00740229]
[1743087952933,3.2078,2024.1,2023.6,0.98848]
[1743087953130,5.91233,2024.0,2023.7,1.3594]
[1743087953439,1.342,2024.0,2023.8,0.98841]
[1743087953638,4.924,2024.0,2023.9,1.4268]
[1743087953838,4.924,2024.0,2023.9,2.41516]
[1743087954031,4.924,2024.0,2023.9,1.4268]
[1743087954440,3.2078,2024.1,2024.0,0.98832]
[1743087954641,3.2078,2024.1,2023.9,2.41513]
[1743087954835,4.19607,2024.1,2023.9,1.4268]
[1743087955039,1.3545,2024.0,2023.9,1.4268]
[1743087955238,1.3545,2024.0,2023.7,0.99341386]
[1743087955543,1.3545,2024.0,2023.8,0.98838]
[1743087955742,1.3545,2024.0,2023.9,2.41516]
[1743087956243,1.3545,2024.0,2023.9,1.4268]
[1743087957433,0.98841,2023.9,2023.7,0.00499386]
[1743087957636,0.98841,2023.9,2023.3,11.8318]
[1743087957637,0.98866,2023.4,2023.1,5.988]
[1743087957843,1.3502,2023.3,2023.2,1.3463]
[1743087958437,1.3502,2023.3,2023.0,0.9888]
[1743087958638,4.9322,2023.3,2022.9,1.3463]
[1743087958839,4.9322,2023.3,2023.0,0.98879]
[1743087959038,4.9322,2023.3,2023.1,1.3463]
[1743087959443,1.3502,2023.3,2023.1,1.3463]
[1743087959646,1.3502,2023.3,2023.1,2.33504]
[1743087960039,1.3502,2023.3,2023.2,2.36641]
[1743087960740,3.58940229,2023.4,2023.2,2.36637]
[1743087960945,3.58940229,2023.4,2023.0,4.19658]
[1743087961140,1.4231,2023.3,2023.2,0.98871]
[1743087961651,0.00740229,2023.4,2023.3,0.98866]
[1743087965864,0.00740229,2023.4,2023.3,2.35216]
[1743087966174,0.00740229,2023.4,2023.3,3.59996]
[1743087967061,0.00740229,2023.4,2023.3,6.80776]
[1743087968063,4.9849,2023.9,2023.7,0.98844]
[1743087968366,4.9849,2023.9,2023.8,1.3635]
[1743087968566,5.97326,2023.9,2023.8,1.3635]
[1743087968767,0.98843,2023.8,2023.3,10.51024]
[1743087969067,1.3482,2023.7,2023.4,1.3216]
[1743087969260,3.2078,2023.6,2023.4,1.3216]
[1743087969462,1.3482,2023.5,2023.4,2.31021]
[1743087970569,0.00740229,2023.8,2023.7,0.98846]
[1743087971572,1.36460229,2023.8,2023.7,0.98846]
[1743087973464,1.36460229,2023.8,2023.7,1.65376537]
[1743087974176,0.00740229,2023.8,2023.7,1.65376537]
[1743087975169,0.00740229,2023.8,2023.7,2.14190799]
[1743087975875,0.00740229,2023.8,2023.7,3.20929193]
[1743087976066,0.00740229,2023.8,2023.7,3.90685225]
[1743087976569,0.00740229,2023.8,2023.7,6.44702396]
[1743087976771,4.4088,2024.2,2023.7,5.45856396]
[1743087977071,4.4088,2024.2,2023.8,2.17409294]
[1743087977072,0.98833,2024.0,2023.8,2.17409294]
[1743087977373,0.9883,2024.1,2023.9,1.47737819]
[1743087977574,0.98832,2024.0,2023.9,1.73268931]
[1743087977769,1.3511,2024.0,2023.9,3.21093579]
[1743087977976,1.3511,2024.0,2023.9,2.22255972]
[1743087978174,2.33942,2024.0,2023.9,2.22255972]
[1743087978475,1.3511,2024.0,2023.9,3.21091972]
[1743087978677,1.3511,2024.0,2023.9,2.84144447]
[1743087978873,1.3511,2024.0,2023.9,2.14353578]
[1743087979080,1.3511,2024.0,2023.9,2.84141463]
[1743087979479,3.21520229,2024.2,2024.1,0.98827]
[1743087979772,3.21520229,2024.2,2024.1,2.17585912]
[1743087980575,0.00740229,2024.2,2024.1,3.91205616]
[1743087982673,1.43590229,2024.2,2024.1,3.91205616]
[1743087983180,2.42412229,2024.2,2024.1,3.21433745]
[1743087983385,1.43590229,2024.2,2024.1,3.21433745]
[1743087983768,1.43590229,2024.2,2024.1,3.21373927]
[1743087983976,2.42412229,2024.2,2024.1,2.22546927]
[1743087984187,3.69502229,2024.2,2024.1,1.07089167]
[1743087984374,0.98836,2023.9,2023.8,0.98841]
[1743087984679,0.98836,2023.9,2023.8,0.48942418]
[1743087984876,4.19616,2023.9,2023.8,0.48942418]
[1743087985178,3.2078,2023.9,2023.4,5.988]
[1743087985477,0.98848,2023.7,2023.5,0.98853]
[1743087985674,1.4236,2023.6,2023.5,2.41253]
[1743087985869,1.4236,2023.6,2023.5,2.9022423]
[1743087986076,1.4236,2023.6,2023.5,2.90215203]
[1743087989184,1.4236,2023.6,2023.5,1.47838549]
[1743087989381,2.41211,2023.6,2023.4,6.97657]
[1743087989581,0.98862,2023.4,2023.2,1.433]
[1743087989782,1.3891,2023.3,2023.2,2.42171]
[1743087989977,1.3891,2023.3,2023.2,2.9116823]
[1743087991381,1.3891,2023.3,2023.2,0.98871]
[1743087991978,1.3891,2023.3,2023.2,2.8152577]
[1743087994182,3.2078,2023.6,2023.5,0.98856]
[1743087994483,3.2078,2023.6,2023.5,1.47769559]
[1743087995490,3.579,2023.8,2023.7,0.98846]
[1743087996189,3.2078,2023.9,2023.8,0.98841]
[1743087996587,5.86195,2024.0,2023.8,0.98841]
[1743087996789,5.86195,2024.0,2023.7,1.345]
[1743087996790,2.29367,2023.9,2023.7,1.345]
[1743087996984,5.50147,2023.9,2023.7,1.345]
[1743087997287,4.5131,2023.9,2023.8,0.98841]
[1743087999082,4.5131,2023.9,2023.7,1.345]
[1743087999083,5.50148,2023.9,2023.7,0.98842]
[1743087999283,0.98844,2023.8,2023.6,2.3925]
[1743087999483,1.398,2023.7,2023.6,0.9885]
[1743087999681,2.6997,2023.7,2023.5,1.404]
[1743087999880,2.6997,2023.7,2023.6,0.98851]
[1743088000480,3.68818,2023.7,2023.5,2.39252]
[1743088000797,1.398,2023.6,2023.5,2.39252]
[1743088001182,3.2078,2023.9,2023.8,0.98841]
[1743088002286,1.2946,2024.0,2023.9,0.98836]
[1743088002486,2.5957,2024.0,2023.9,0.98836]
[1743088003183,4.57364229,2024.2,2023.9,0.98836]
[1743088003184,0.00740229,2024.2,2024.1,0.98827]
[1743088004983,0.00740229,2024.2,2024.1,1.47718839]
[1743088005889,0.00740229,2024.2,2024.1,4.19607]
[1743088006189,0.00740229,2024.2,2024.1,0.98827]
[1743088006786,1.38890229,2024.2,2024.1,0.98827]
[1743088009193,2.37712229,2024.2,2024.1,0.98827]
[1743088009390,1.38890229,2024.2,2024.1,0.98827]
[1743088012888,2.37712229,2024.2,2024.1,0.98827]
[1743088013198,0.98827,2024.1,2024.0,1.3781]
[1743088013497,4.96217,2024.1,2024.0,1.3781]
[1743088014090,0.98832,2024.0,2023.8,4.19617]
[1743088014289,1.3226,2023.9,2023.8,5.51577]
[1743088015487,0.99563229,2024.2,2023.8,5.51577]
[1743088015488,0.00740229,2024.2,2024.1,0.98827]
[1743088016598,0.00740229,2024.2,2024.1,2.30787]
[1743088016894,0.99564229,2024.2,2023.8,3.2078]
[1743088017099,2.7068,2024.1,2023.9,2.28974]
[1743088017301,2.6219,2024.0,2023.9,2.28974]
[1743088017500,2.6219,2024.0,2023.9,1.3014]
[1743088017695,2.6219,2024.0,2023.9,2.28976]
[1743088019693,2.6219,2024.0,2023.8,3.2078]
[1743088020005,1.3982,2023.9,2023.8,5.49758]
[1743088020198,2.38656,2023.9,2023.8,1.3014]
[1743088020401,1.3982,2023.9,2023.5,3.2078]
[1743088020603,8.1813,2023.8,2023.5,5.60925]
[1743088020802,0.98856,2023.6,2023.4,0.98859]
[1743088021003,1.3985,2023.5,2023.4,0.98859]
[1743088021306,1.3985,2023.5,2023.4,0.98861]
[1743088022004,1.3985,2023.5,2023.3,2.40152]
[1743088022204,1.3985,2023.5,2023.4,0.98861]
[1743088022404,1.3985,2023.5,2023.4,2.40151]
[1743088022801,2.38706,2023.5,2023.4,1.4129]
[1743088022994,2.38706,2023.5,2023.1,2.47926229]
[1743088022995,4.6063,2023.5,2023.1,0.00740229]
[1743088023200,0.98871,2023.2,2023.1,0.00740229]
[1743088023407,6.1971,2023.4,2023.1,0.00740229]
[1743088023706,2.5757,2023.3,2023.1,0.00740229]
[1743088023906,1.3338,2023.2,2023.1,1.38700229]
[1743088024500,1.3338,2023.2,2023.1,2.37575229]
[1743088025707,1.2419,2023.3,2023.2,0.98871]
[1743088025904,1.2419,2023.3,2023.2,2.36831]
[1743088025905,1.3338,2023.3,2023.2,2.36831]
[1743088029697,2.5275,2023.4,2023.3,0.98866]
[1743088029903,1.4323,2023.4,2023.3,2.37726]
[1743088032301,3.2078,2023.8,2023.4,2.4715]
[1743088032504,1.4169,2023.7,2023.6,0.98851]
[1743088032702,2.40538,2023.7,2023.5,2.40483]
[1743088032899,1.4169,2023.7,2023.2,9.1958]
[1743088033111,2.40545,2023.6,2023.4,0.9886]
[1743088033306,1.4169,2023.5,2023.3,1.4163]
[1743088033509,2.638,2023.5,2023.4,0.98861]
[1743088035807,3.2078,2023.8,2023.4,0.98861]
[1743088036013,1.3836,2023.7,2023.6,0.98846]
[1743088036517,1.3836,2023.7,2023.5,3.64692]
[1743088036711,1.3836,2023.7,2023.6,0.98851]
[1743088036907,2.37206,2023.7,2023.6,1.3901]
[1743088037311,1.3836,2023.7,2023.6,2.37861]
[1743088037610,1.3836,2023.7,2023.2,9.1958]
[1743088037816,0.98854,2023.6,2023.4,2.37869]
[1743088038007,1.3836,2023.5,2023.4,2.37869]
[1743088040114,2.6032,2023.5,2023.4,1.3901]
[1743088040420,2.6032,2023.5,2023.4,2.37871]
[1743088041521,3.59176,2023.5,2023.4,2.37871]
[1743088041813,3.59176,2023.5,2023.4,1.3901]
[1743088042014,3.59176,2023.5,2023.3,0.98861]
[1743088042214,2.6197,2023.4,2023.3,2.42331]
[1743088043010,1.4215,2023.4,2023.3,2.42331]
[1743088044915,1.2831,2023.6,2023.5,0.98856]
[1743088045124,2.5984,2023.6,2023.5,0.98856]
[1743088045313,1.3153,2023.6,2023.5,0.98856]
[1743088046623,2.30382,2023.6,2023.4,2.33697]
[1743088046814,2.30382,2023.6,2023.4,1.3484]
[1743088046815,2.30384,2023.6,2023.4,1.3484]
[1743088047016,1.3153,2023.5,2023.4,2.33701]
[1743088048221,1.3153,2023.5,2023.4,1.3484]
[1743088048424,0.98861,2023.4,2023.1,2.39770229]
[1743088048717,1.3767,2023.3,2023.2,2.37779]
[1743088049021,1.3767,2023.3,2023.2,1.87997331]
[1743088049220,2.36536,2023.3,2023.2,1.3891]
[1743088049418,2.3654,2023.3,2023.1,2.18965229]
[1743088049727,4.5845,2023.2,2023.1,2.18965229]
[1743088050323,43.2791,2023.4,2023.3,0.98866]
[1743088050532,3.572,2023.6,2023.4,0.98856]
[1743088050721,4.56051,2023.6,2023.4,0.98856]
[1743088051521,0.98856,2023.5,2023.3,0.98862]
[1743088051725,1.3581,2023.4,2023.3,0.98862]
[1743088051923,1.3581,2023.4,2023.3,1.47979813]
[1743088052727,1.3581,2023.4,2023.3,1.47984088]
[1743088054623,1.3581,2023.4,2023.3,2.13855759]
[1743088056420,2.34671,2023.4,2023.3,1.14993759]
[1743088056621,2.34671,2023.4,2023.3,2.13859759]
[1743088057328,2.34671,2023.4,2023.3,1.4800133]
[1743088057524,2.34671,2023.4,2023.3,1.48005312]
[1743088057826,1.3581,2023.4,2023.3,1.48005312]
[1743088058218,2.34671,2023.4,2023.3,0.49139312]
[1743088058622,2.34675,2023.4,2023.3,0.98866]
[1743088058818,2.34673,2023.4,2023.2,0.98867]
[1743088059023,1.4116,2023.3,2023.2,0.98867]
[1743088059222,1.4116,2023.3,2023.2,1.48009706]
[1743088060621,1.4116,2023.3,2023.2,1.48004551]
[1743088061016,1.4116,2023.3,2023.2,2.13870661]
[1743088061428,3.61146,2023.3,2023.2,2.53123661]
[1743088061630,2.6228,2023.3,2023.2,1.87257551]
[1743088061829,2.6228,2023.3,2023.2,2.86128551]
[1743088062127,3.61146,2023.3,2023.2,1.3812]
[1743088062332,4.86526,2023.3,2023.2,1.3812]
[1743088062624,3.8766,2023.3,2023.2,1.3812]
[1743088062825,4.86526,2023.3,2023.2,2.36991]
[1743088063126,4.86526,2023.3,2023.2,1.3812]
[1743088063522,3.8766,2023.3,2023.2,0.98871]
[1743088063721,3.8766,2023.3,2023.2,2.36961]
[1743088064321,2.6228,2023.3,2023.2,2.86083834]
[1743088064525,1.4116,2023.3,2023.2,2.86083834]
[1743088067931,2.40026,2023.3,2023.1,2.18961229]
[1743088068130,2.40026,2023.3,2023.1,3.60111229]
[1743088068334,1.3135,2023.2,2023.1,3.60111229]
[1743088068632,1.3135,2023.2,2023.1,4.09245995]
[1743088069022,1.3135,2023.2,2023.1,2.89895995]
[1743088069224,3.49371,2023.2,2023.1,2.89899995]